[Event "44th Chess Olympiad Women 2022"]
[Site "Chennai"]
[Date "2022.08.03"]
[Round "6.6"]
[White "Lahav, Michal"]
[Black "Wagner, Dinara"]
[Result "1-0"]
[WhiteElo "2191"]
[BlackElo "2341"]
[Annotator "TA"]
[PlyCount "79"]
[EventDate "2022.??.??"]
[TimeControl "60"]

{[%evp 12,79,20,14,22,0,7,17,29,11,8,9,25,19,29,29,60,63,89,75,110,124,128,98,
119,112,138,145,203,177,187,195,215,159,167,163,154,95,82,79,217,220,390,390,
547,547,704,690,747,750,680,638,820,803,689,607,606,591,546,480,567,583,575,
570,5727,5724,5468,5119,1434,1039]} 1. e4 {[%emt 0:00:10]} c5 {[%emt 0:00:06]}
2. c3 {[%emt 0:00:10]} d5 {[%emt 0:00:28]} 3. exd5 {[%emt 0:00:15]} Qxd5 {
[%emt 0:00:10]} 4. d4 {[%emt 0:00:16]} Nf6 {[%emt 0:00:25]} 5. Nf3 {[%emt 0:00:
00]} e6 {[%emt 0:00:40]} 6. Na3 {[%emt 0:00:50]} Nc6 {[%emt 0:01:01]} 7. Be3 {
[%emt 0:01:06]} cxd4 {[%emt 0:02:21] [#] B22: Sicilian: 2 c3.} 8. Nb5 $1 {
[%emt 0:00:25]} Qd8 {[%emt 0:01:10] Prevents Nc7+.} (8... Qd7 $5 {[%cal Rd4e3]}
9. Nbxd4 Be7 $14) 9. Nbxd4 {[%emt 0:00:42]} Nd5 {[%emt 0:03:39] The position
is equal. 9...Nd5 scores better than 9...Nxd4.} 10. Nxc6 {[%emt 0:00:23]} bxc6
{[%emt 0:00:05]} 11. Bd2 {[%emt 0:00:18]} Be7 {[%emt 0:06:13]} 12. c4 {[%emt 0:
00:00]} Nf6 {[%emt 0:03:14]} 13. Qc2 {[%emt 0:01:03] [#] Against Ne4} O-O $146
{[%emt 0:02:56]} ({Predecessor:} 13... c5 14. O-O-O Bb7 15. Bd3 Qc7 16. Rde1
O-O-O 17. Ne5 Rhf8 18. Bc3 g6 19. Qa4 Ng4 {½-½ (47) Christiansen,J (2558)
-Kulaots,K (2542) Sweden 2020}) 14. Bd3 {[%emt 0:01:56]} c5 {[%emt 0:01:45]}
15. Bc3 {[%emt 0:04:08]} h6 {[%emt 0:01:13]} 16. O-O-O {[%emt 0:08:57]} Qc7 {
[%emt 0:04:35]} 17. Ne5 $1 {[%emt 0:03:11]} Nd7 {[%emt 0:16:37]} 18. Qe2 {
[%emt 0:18:57]} Bd6 {[%emt 0:15:07][%cal Rd6e5]} 19. Ng4 {[%emt 0:02:52][%cal
Yg4h6] White threatens Nxh6+! and mate. White is much more active. The black
rooks are badly placed.} (19. Qe4 $6 f5 20. Qxa8 Bxe5 $11) 19... Bf4+ {[%emt 0:
00:00]} (19... Bb7 {leads to mate.} 20. Nxh6+ $1 Kh8 21. Qh5 (21. Nxf7+ Rxf7
22. Qh5+ Kg8 $16) 21... Nf6 22. Bxf6 Bf4+ 23. Kb1) (19... h5 $16 {keeps
fighting.}) 20. Kb1 $18 {[%emt 0:00:03]} Bb7 {[%emt 0:01:30]} 21. g3 $40 {
[%emt 0:01:55] White attacks with force.} Bg5 {[%emt 0:00:09]} (21... Bxh1 $2
22. gxf4 Qxf4 23. Rxh1 $18) 22. h4 {[%emt 0:01:10]} Bf6 {[%emt 0:00:00]} (22...
Bxh1 $2 23. hxg5 e5 24. Rxh1 $18) 23. Nxf6+ {[%emt 0:22:32]} Nxf6 {[%emt 0:00:
06]} 24. g4 {[%emt 0:00:08]} Bxh1 {[%emt 0:05:10]} 25. Rxh1 {[%emt 0:00:02]
Black must now prevent g5.} Qf4 {[%emt 0:18:54] Inhibits g5. A mistake that
costs the game.} (25... Rad8 $16) 26. g5 $1 {[%emt 0:00:21][%cal Yg4g5,Yg5h6,
Yh6h7]} Ng4 {[%emt 0:00:45]} (26... hxg5 $2 27. hxg5 Qxg5 28. f4 $18) (26...
Nd7) 27. f3 {[%emt 0:00:46]} Ne3 {[%emt 0:07:19]} (27... Qe3 $142 28. fxg4 Qxe2
29. Bxe2 hxg5 30. hxg5 Rfd8) 28. Bd2 {[%emt 0:00:14] White is clearly winning.}
Rfd8 {[%emt 0:00:33][%cal Yf4d6]} 29. Bxe3 {[%emt 0:00:39] This bishop pair is
nice.} Qe5 {[%emt 0:00:03]} 30. gxh6 {[%emt 0:01:17]} Rab8 {[%emt 0:00:03]} 31.
b3 {[%emt 0:06:31]} ({But not} 31. hxg7 $2 {[#]} Rxd3 $1 32. Qh2 Qxh2 33. Rxh2
Rxe3 $19) 31... a5 {[%emt 0:01:35]} 32. Rg1 {[%emt 0:00:05]} g6 {[%emt 0:00:06]
} 33. f4 {[%emt 0:04:11]} Qc3 {[%emt 0:00:19]} 34. h7+ {[%emt 0:01:05]} Kh8 {
[%emt 0:01:08]} 35. Bc2 {[%emt 0:00:01]} a4 {[%emt 0:00:11]} 36. Bc1 {[%emt 0:
00:08] aiming for Bb2.} axb3 {[%emt 0:00:25]} 37. axb3 {[%emt 0:00:14]} Kxh7 {
[%emt 0:01:15]} 38. Bb2 {[%emt 0:00:12]} Rxb3 {[%emt 0:00:09]} 39. Qh5+ {
[%emt 0:02:07]} Kg8 {[%emt 0:00:03]} 40. Bxb3 {[%emt 0:00:10] Weighted Error
Value: White=0.07 (flawless) /Black=0.31} 1-0

[Event "44th Chess Olympiad Women 2022"]
[Site "Chennai"]
[Date "2022.08.03"]
[Round "6.6"]
[White "Schneider, Jana"]
[Black "Levitan, Ronit"]
[Result "1/2-1/2"]
[WhiteElo "2342"]
[BlackElo "2084"]
[Annotator "TA"]
[PlyCount "81"]
[EventDate "2022.??.??"]
[TimeControl "60"]

{[%evp 20,81,17,0,38,46,38,32,27,26,49,59,43,11,9,5,6,5,7,0,11,0,8,-6,-9,-6,-6,
-12,-12,-12,0,0,0,0,0,0,2,2,12,0,0,0,0,0,0,0,0,0,0,0,0,0,0,0,0,0,0,0,0,0,0,0,0,
0]} 1. e4 {[%emt 0:00:06]} e5 {[%emt 0:00:32]} 2. Nf3 {[%emt 0:00:09]} Nc6 {
[%emt 0:00:13]} 3. Bb5 {[%emt 0:00:08]} a6 {[%emt 0:00:08]} 4. Ba4 {[%emt 0:00:
00]} Nf6 {[%emt 0:00:04]} 5. O-O {[%emt 0:00:11]} Nxe4 {[%emt 0:00:10]} 6. d4 {
[%emt 0:00:20]} b5 {[%emt 0:00:28]} 7. Bb3 {[%emt 0:00:12]} d5 {[%emt 0:00:05]}
8. dxe5 {[%emt 0:00:08]} Be6 {[%emt 0:00:06]} 9. Qe2 {[%emt 0:00:27]} Be7 {
[%emt 0:01:36]} 10. Rd1 {[%emt 0:00:39]} O-O {[%emt 0:00:38]} 11. c3 {[%emt 0:
00:00]} Bc5 {[%emt 0:17:19] C81: Open Ruy Lopez: Keres Variation (9 Qe2).} 12.
Be3 {[%emt 0:01:58]} Bxe3 {[%emt 0:00:06]} 13. Qxe3 {[%emt 0:00:07]} Na5 {
[%emt 0:01:17][%cal Yc6a5,Ya5c4,Yc4e5] White is slightly better.} 14. Nbd2 {
[%emt 0:03:52]} Qe7 {[%emt 0:07:37] [#]} 15. Nxe4 $146 {[%emt 0:16:30]} ({
Predecessor:} 15. Nd4 Nxd2 16. Rxd2 c5 17. Ne2 Rfd8 18. Rad1 Rac8 19. h3 h6 20.
Nf4 Nxb3 21. axb3 {½-½ (34) Suta,A (2212)-Spalir,J (2363) Ljubljana 2018})
15... dxe4 {[%emt 0:00:12]} 16. Bxe6 {[%emt 0:05:51][%cal Ye6d5] [#] Hoping
for Bd5!} exf3 {[%emt 0:00:29] The position is equal.} 17. Bd5 {[%emt 0:01:08]
[%cal Ye6d5,Yd5f3,Yf3e2]} c6 $1 {[%emt 0:01:59]} 18. Bxf3 {[%emt 0:00:00] And
now b3 would win.} Nc4 {[%emt 0:01:07][%csl Yb2,Ye3,Ye5]} 19. Qe4 {[%emt 0:05:
29]} Nxe5 {[%emt 0:03:09]} 20. Be2 {[%emt 0:01:29]} f5 {[%emt 0:00:00]} 21. Qd4
{[%emt 0:07:15]} Rad8 {[%emt 0:03:14]} 22. Qb6 {[%emt 0:01:23]} Nd7 {[%emt 0:
02:22]} 23. Qxc6 {[%emt 0:18:48]} Qxe2 {[%emt 0:01:12]} 24. Rxd7 {[%emt 0:00:
09] [#] Black must now prevent Qd5+.} Rxd7 {[%emt 0:00:04]} 25. Qxd7 {[%emt 0:
00:07]} Qxb2 $11 {[%emt 0:01:31] Endgame KQR-KQR} 26. Qe6+ {[%emt 0:00:39]} Kh8
{[%emt 0:00:07]} 27. Rd1 {[%emt 0:02:04]} Qxc3 {[%emt 0:00:00]} 28. Qxa6 {
[%emt 0:02:22]} b4 {[%emt 0:01:20]} 29. h3 {[%emt 0:06:47]} h6 {[%emt 0:02:00]}
30. Qe6 {[%emt 0:01:26]} Qc5 {[%emt 0:15:46]} 31. Rb1 {[%emt 0:03:24]} Rd8 {
[%emt 0:01:42]} 32. Qe1 {[%emt 0:02:34]} Rd4 {[%emt 0:00:00]} 33. Qe3 {[%emt 0:
04:25]} Qd5 {[%emt 0:02:08][%cal Yd5a2]} 34. Qb3 {[%emt 0:02:32]} Qxb3 {
[%emt 0:00:46]} 35. Rxb3 {[%emt 0:00:07] KR-KR} Rd1+ {[%emt 0:00:32]} 36. Kh2 {
[%emt 0:00:05]} Rd2 {[%emt 0:00:05][%csl Ya2,Yf2]} 37. Kg3 {[%emt 0:00:32]}
Rxa2 {[%emt 0:00:34] Threatens to win with ...Ra3.} 38. Rxb4 {[%emt 0:00:54]}
Kh7 {[%emt 0:02:58]} 39. Rb6 {[%emt 0:00:37]} g5 {[%emt 0:02:04]} 40. Rf6 {
[%emt 0:00:53]} Ra5 {[%emt 0:00:17]} 41. Rd6 {[%emt 0:00:00] Weighted Error
Value: White=0.04 (flawless) /Black=0.03 (flawless)} 1/2-1/2

[Event "44th Chess Olympiad Women 2022"]
[Site "Chennai"]
[Date "2022.08.03"]
[Round "6.7"]
[White "Houska, Jovanka"]
[Black "Danielian, Elina"]
[Result "0-1"]
[WhiteElo "2360"]
[BlackElo "2441"]
[Annotator "TA"]
[PlyCount "78"]
[EventDate "2022.??.??"]
[TimeControl "60"]

{[%evp 9,78,36,50,27,29,31,41,34,40,33,41,46,56,39,35,27,31,7,16,3,12,19,45,0,
6,0,0,-12,-26,-73,0,-2,0,-125,-154,-181,-79,-89,-61,-64,-64,-57,-77,-60,-73,
-80,-67,-508,-521,-1687,-1428,-1428,-954,-1074,-1069,-945,-945,-944,-845,-845,
-842,-4485,-3541,-2078,-1941,-5285,-1054,-5822,-4133,-1117,-1117]} 1. d4 {
[%emt 0:00:03]} d6 {[%emt 0:00:05]} 2. e4 {[%emt 0:01:22]} g6 {[%emt 0:01:40]}
3. Nc3 {[%emt 0:00:21]} Bg7 {[%emt 0:02:11]} 4. Be3 {[%emt 0:01:15]} c6 {
[%emt 0:01:17]} 5. Qd2 {[%emt 0:04:10]} Nd7 {[%emt 0:02:50]} 6. h3 {[%emt 0:00:
00] B06: Modern Defence.} b5 {[%emt 0:06:48]} 7. Bd3 {[%emt 0:04:33]} Bb7 {
[%emt 0:01:41]} 8. Nf3 {[%emt 0:02:17] White is slightly better.} Qc7 {[%emt 0:
00:00]} 9. Ne2 {[%emt 0:14:33]} a6 {[%emt 0:09:46]} 10. c3 {[%emt 0:10:14]
[%cal Yc2c3,Yc3c4]} e5 {[%emt 0:09:54] [#]} 11. dxe5 $146 {[%emt 0:00:00]} ({
Predecessor:} 11. a4 Ngf6 12. Ng3 h5 13. Bg5 Ng8 14. dxe5 dxe5 15. Nh4 Nc5 16.
Bc2 Ne6 17. Nf3 {½-½ (55) Jablonicky,F (2072)-Petran,P (2320) Banska
Stiavnica 2017}) 11... dxe5 {[%emt 0:00:04]} 12. c4 {[%emt 0:00:27]} Ngf6 {
[%emt 0:03:46]} 13. Rc1 {[%emt 0:08:25][%cal Ya2a4]} O-O {[%emt 0:03:39]} 14.
O-O {[%emt 0:00:00]} Rfd8 {[%emt 0:02:45]} 15. Rfd1 {[%emt 0:01:34]} Nf8 {
[%emt 0:05:25]} 16. Qc3 {[%emt 0:10:53]} Ne6 {[%emt 0:05:59]} 17. cxb5 {
[%emt 0:14:52]} (17. Nxe5 $2 Nh5 18. cxb5 (18. f4 $2 Nexf4 19. Nxf4 Bxe5 $19)
18... axb5 19. Nxf7 (19. f4 $2 Nexf4 20. Nxf4 Bxe5 $19) 19... Bxc3 $19) 17...
axb5 {[%emt 0:00:04]} 18. Qxe5 {[%emt 0:05:02]} Qe7 {[%emt 0:06:11][%cal Yf6g4]
} 19. Qg3 {[%emt 0:07:03] Prevents Ng4.} (19. Qh2 $11) 19... Rxa2 {[%emt 0:00:
00]} (19... Nh5 $17 20. Qh4 (20. Qg4 Rxa2 21. Ng5 Nxg5 $17) 20... Qxh4 21. Nxh4
Rxa2) 20. Qh4 {[%emt 0:00:18]} Rxb2 {[%emt 0:04:20]} 21. Ng5 {[%emt 0:01:08]} (
21. Ned4 $11 {keeps the balance.} Nxd4 22. Bxd4) 21... Nh5 $17 {[%emt 0:13:31]
Hoping for ...Bf6.} 22. Qg4 {[%emt 0:00:58] [#]} Bc8 {[%emt 0:02:14]} (22...
Nf8 $1 $19 {Strongly threatening ...h6.} 23. Bc5 Qc7) 23. Rxc6 {[%emt 0:00:20]}
h6 {[%emt 0:01:20]} 24. Nxe6 {[%emt 0:00:24]} Bxe6 {[%emt 0:00:04]} 25. Qf3 {
[%emt 0:00:26]} Bb3 $1 {[%emt 0:01:40]} 26. Rd2 {[%emt 0:00:53]} Rxd2 {[%emt 0:
00:00]} 27. Bxd2 {[%emt 0:00:03]} Qd7 $36 {[%emt 0:00:32] Black has the
initiative. Black is more active.} 28. Bxb5 {[%emt 0:00:28] This costs White
the game.} Qxd2 $19 {[%emt 0:00:25] Black is clearly winning.} 29. Qxb3 {
[%emt 0:00:02]} Qe1+ {[%emt 0:00:06]} 30. Kh2 {[%emt 0:00:08]} Rd1 {[%emt 0:01:
00][%csl Gd1][%cal Re1h1] [#]} 31. Rc8+ {[%emt 0:00:41]} Kh7 {[%emt 0:00:54]
[%csl Gd1][%cal Re1h1]} 32. Qxd1 {[%emt 0:00:10]} Qxd1 {[%emt 0:00:00]} 33. Rc1
{[%emt 0:01:36]} Qd2 {[%emt 0:01:15] White must now prevent ... Nf4.} 34. g3 {
[%emt 0:00:06] Inhibits Nf4.} Nf6 {[%emt 0:00:34]} 35. Rc7 {[%emt 0:00:18]} Qa5
{[%emt 0:01:35]} 36. Rb7 {[%emt 0:00:49]} Nxe4 {[%emt 0:00:00] ...Nd6 is the
strong threat.} 37. Bc6 {[%emt 0:00:36]} Nd6 {[%emt 0:00:28]} 38. Rd7 {[%emt 0:
00:10]} Qc5 {[%emt 0:00:08]} 39. Bg2 {[%emt 0:00:50]} Qxf2 {[%emt 0:00:38]
Weighted Error Value: White=0.96/Black=0.54} 0-1

[Event "44th Chess Olympiad Women 2022"]
[Site "Chennai"]
[Date "2022.08.03"]
[Round "6.7"]
[White "Mkrtchyan, Mariam"]
[Black "Kalaiyalahan, Akshaya"]
[Result "1/2-1/2"]
[WhiteElo "2285"]
[BlackElo "2158"]
[Annotator "TA"]
[PlyCount "196"]
[EventDate "2022.??.??"]
[TimeControl "60"]

{[%evp 15,196,-5,7,5,0,0,6,-7,-1,0,32,21,27,15,64,44,44,30,49,45,50,8,11,0,0,0,
0,-6,-4,0,0,0,11,0,0,0,0,0,-6,-55,-52,-79,0,-160,-160,-170,-161,-155,-168,-174,
-164,-151,-149,-499,-502,-500,-483,-436,-381,-559,-537,-1002,-332,-325,-323,
-316,-310,-418,-406,-379,-394,-588,-593,-539,-523,-640,-647,-617,-604,-1290,
-1382,-29954,-29962,-29961,-2908,-29967,-1181,-1068,-1019,-1037,-964,-29974,
-29973,-29961,-29961,-29978,-29979,-29979,-29980,-29980,-29978,-29978,-1429,
-29979,-29980,-29980,-29980,-29979,-29979,-29975,-29975,-29975,-29975,-29975,
-29975,-29977,-29977,-29979,-29980,-29978,-29979,-29981,-29981,-29981,-29981,
-29980,-29980,-29980,-29981,-29981,-29981,-29981,-29982,-29982,-29982,-29982,
-29983,-29984,-29984,-29984,-29979,-29979,-29980,-29980,-29981,-29981,-29978,
-29979,-29980,-29980,0,0,0,-29980,-29980,-29980,-29981,-29981,-29979,-29979,
-29977,-29974,-29974,-29978,-29977,-29977,-29977,-29977,-29966,-29969,-29969,
-29962,-123,-123,-123,-123,-123,-123,-123,-123,-8,-8,-8]} 1. d4 {[%emt 0:00:03]
} d5 {[%emt 0:00:05]} 2. c4 {[%emt 0:00:30]} e6 {[%emt 0:00:05]} 3. Nf3 {
[%emt 0:00:25]} Nf6 {[%emt 0:00:08]} 4. g3 {[%emt 0:00:46]} Bb4+ {[%emt 0:00:
00]} 5. Bd2 {[%emt 0:00:05]} Be7 {[%emt 0:00:15]} 6. Bg2 {[%emt 0:00:29]} O-O {
[%emt 0:00:19]} 7. O-O {[%emt 0:00:05]} c6 {[%emt 0:00:19]} 8. Bc3 {[%emt 0:00:
00]} Ne4 {[%emt 0:03:30]} 9. Nbd2 {[%emt 0:00:37] E11: Bogo-Indian.} Nxc3 {
[%emt 0:03:37]} 10. bxc3 {[%emt 0:00:05]} Nd7 {[%emt 0:00:09]} 11. e4 {[%emt 0:
00:00]} dxe4 {[%emt 0:00:34]} 12. Nxe4 {[%emt 0:00:30] [#]} Nf6 $146 {[%emt 0:
00:00]} ({Predecessor:} 12... f5 13. Ned2 Bf6 14. Re1 Re8 15. c5 e5 16. Qb3+
Kh8 17. Nc4 e4 18. Nd6 Rf8 {1-0 (40) Wahlund,M (2127)-Kucuksari,K (2337) Vaxjo
2017}) 13. Ne5 {[%emt 0:05:07]} Qc7 {[%emt 0:05:15]} 14. Rb1 {[%emt 0:04:48]}
Bd7 {[%emt 0:03:41]} (14... Nxe4 $11 {feels stronger.} 15. Bxe4 g6) 15. Qc2 {
[%emt 0:13:59] White is much more active. The black rooks are badly placed.}
Rab8 {[%emt 0:06:32]} 16. Rfd1 {[%emt 0:06:02]} Be8 {[%emt 0:02:09]} 17. f4 {
[%emt 0:03:18]} Nxe4 {[%emt 0:02:59]} 18. Bxe4 {[%emt 0:00:49]} g6 {[%emt 0:00:
00]} 19. h4 {[%emt 0:02:03]} f6 {[%emt 0:03:02]} 20. Nf3 {[%emt 0:05:35]} Bf7 {
[%emt 0:05:27]} 21. Kg2 {[%emt 0:01:23]} Rfd8 {[%emt 0:01:07]} 22. h5 {[%emt 0:
00:00][%cal Rh5g6]} Kg7 {[%emt 0:08:13]} 23. Rh1 {[%emt 0:05:57]} c5 {[%emt 0:
00:00]} (23... f5 24. Ne5 $1 $14) 24. hxg6 {[%emt 0:05:02]} hxg6 {[%emt 0:00:
00]} 25. Rh2 {[%emt 0:03:44]} f5 {[%emt 0:01:26]} 26. Bd3 {[%emt 0:00:50]} Bf6
{[%emt 0:03:07][%cal Rc5d4]} 27. Qf2 {[%emt 0:03:33]} (27. Rbh1 $11 {deserves
consideration.}) 27... Qc6 {[%emt 0:03:26]} 28. Kf1 {[%emt 0:05:03][%cal Yg3g4]
} Qd7 {[%emt 0:02:47]} ({Black should try} 28... cxd4 $17 29. cxd4 (29. Nxd4
Qd6 $17) 29... Qd7) 29. Ne5 $2 {[%emt 0:07:39]} ({Better is} 29. g4 $1 $11 fxg4
30. Ne5) 29... Bxe5 $17 {[%emt 0:03:41]} 30. fxe5 {[%emt 0:00:04]} cxd4 {
[%emt 0:02:23]} 31. Qf4 {[%emt 0:00:12] Threatening mate with Qh6+.} Rh8 {
[%emt 0:00:13] Inhibits Qh6+.} 32. Rxh8 {[%emt 0:00:46]} Rxh8 {[%emt 0:00:17]
[%cal Yb8h8,Yh8h2,Yh2h3,Yh3g3]} 33. cxd4 {[%emt 0:00:11]} Qc6 {[%emt 0:07:25]}
34. Kf2 $2 {[%emt 0:02:48]} (34. d5 $17 {is tougher.} exd5 35. Qd4) 34... Rh2+
$19 {[%emt 0:02:36]} 35. Ke3 {[%emt 0:00:06]} Qg2 {[%emt 0:05:12]} 36. d5 {
[%emt 0:00:04]} Rh3 {[%emt 0:06:19]} 37. Be2 {[%emt 0:00:00]} (37. Kd4 $142
Rxg3 38. Kc3) 37... Rxg3+ {[%emt 0:00:25]} 38. Bf3 {[%emt 0:02:24]} Qh3 $2 {
[%emt 0:03:59]} ({Inferior is} 38... g5 39. Qxg5+ Rxg5 40. Bxg2 Rxg2 41. Rxb7
exd5 42. e6 dxc4 43. Rxa7 $11 (43. Rxf7+ Kg6 $11)) (38... exd5 39. Rb3 dxc4 40.
Rxb7 Qg1+ 41. Ke2 Rg2+ $1 42. Bxg2 Qxg2+ 43. Ke3 Qxb7) 39. Rh1 {[%emt 0:02:29]}
({But not} 39. Rxb7 $2 g5 40. Qxg3 Qxg3 $19) 39... Qxh1 {[%emt 0:00:05]} 40.
Qxg3 {[%emt 0:00:03] Endgame KQB-KQB} Qc1+ {[%emt 0:01:33]} 41. Kd3 {[%emt 0:
04:40]} b5 {[%emt 0:00:00]} 42. cxb5 {[%emt 0:02:58]} exd5 {[%emt 0:00:04]
[%cal Yd5d4] White must now prevent ...d4!} ({Wrong is} 42... Qa3+ $2 43. Ke2
Qxa2+ 44. Kf1 exd5 45. Be2 $19) 43. Qh4 {[%emt 0:16:50]} (43. e6 $142 Qc4+ 44.
Kd2 Qxa2+ 45. Ke1 Qa5+ 46. Kd1 Qa1+ 47. Ke2 Qb2+ 48. Ke1 Qc3+ 49. Kf2 Bxe6 50.
Qd6) 43... Qa3+ {[%emt 0:00:00]} 44. Ke2 {[%emt 0:01:31]} Qxa2+ {[%emt 0:00:20]
} 45. Ke1 {[%emt 0:00:38]} Qa1+ {[%emt 0:00:18]} 46. Kd2 {[%emt 0:00:29]} Qb2+
{[%emt 0:00:32]} 47. Kd1 {[%emt 0:00:17]} Qxe5 {[%emt 0:01:16]} 48. Qa4 {
[%emt 0:00:03]} Qe3 {[%emt 0:00:00]} 49. Be2 {[%emt 0:00:30]} f4 {[%emt 0:02:
27]} 50. Qa1+ {[%emt 0:00:15]} Kg8 {[%emt 0:00:05]} (50... d4 $142 51. Qxa7
Qb3+ 52. Ke1 Qc3+ 53. Kf2 Qe3+ 54. Kf1 f3 55. Bd1 Qd3+ 56. Ke1 Qe3+ 57. Kf1 g5
58. Qc7 Qd3+ 59. Ke1 f2+ 60. Kxf2 Qxd1 61. b6 Qd2+ 62. Kg3 Qe3+ 63. Kg2 Qe2+
64. Kg3 d3 65. b7 Qe3+ 66. Kg2 Qe4+ 67. Kh2 Qe2+ 68. Kg3 d2 69. b8=Q d1=Q 70.
Qc3+ Kg6 71. Qc6+ Qe6 72. Qxe6+ Bxe6 73. Qe8+ Bf7 74. Qe5 Qd5 75. Qe1 Qd6+ 76.
Kf3 Qd3+ 77. Kg4 Qd4+ 78. Kh3 Qh8+ 79. Kg2 Bd5+ 80. Kf2 Qh4+ 81. Ke2 Qxe1+ 82.
Kxe1 g4 83. Kf2 Kg5 84. Kg3 Bc4 85. Kf2 Kf4 86. Ke1 Ke3 87. Kd1 g3 88. Kc2 Kd4
89. Kd2 g2 90. Kc2 g1=Q 91. Kd2 Qg2+ 92. Kd1 Kd3 93. Ke1 Qg1#) 51. Qf6 {
[%emt 0:00:20]} d4 {[%emt 0:01:19]} 52. Qd8+ {[%emt 0:02:04]} Kg7 {[%emt 0:00:
06] ( -> ...f3)} 53. Qd7 {[%emt 0:01:34]} Qb3+ {[%emt 0:05:24]} 54. Ke1 {
[%emt 0:02:12]} Qc3+ {[%emt 0:00:08]} 55. Kf2 {[%emt 0:00:20]} Qe3+ {[%emt 0:
00:26]} 56. Kf1 {[%emt 0:00:25]} f3 {[%emt 0:00:00]} 57. Bd1 {[%emt 0:01:25]}
Qd3+ {[%emt 0:00:31]} 58. Ke1 {[%emt 0:00:05]} f2+ {[%emt 0:01:54]} 59. Kxf2 {
[%emt 0:00:03]} Qxd1 {[%emt 0:00:06]} 60. Qxa7 {[%emt 0:00:05]} Qd2+ {[%emt 0:
00:24]} 61. Kf3 {[%emt 0:00:56]} Qd3+ {[%emt 0:00:00]} 62. Kf2 {[%emt 0:00:16]}
Qxb5 {[%emt 0:01:53]} 63. Qxd4+ {[%emt 0:00:00]} Kg8 {[%emt 0:00:12]} 64. Qd8+
{[%emt 0:00:05]} Qe8 {[%emt 0:00:11]} 65. Qf6 {[%emt 0:00:12]} Qe6 {[%emt 0:00:
11]} 66. Qd8+ {[%emt 0:01:00]} Kg7 {[%emt 0:00:04]} 67. Qb8 {[%emt 0:00:28]}
Qf6+ {[%emt 0:00:12]} 68. Kg3 {[%emt 0:00:09]} g5 {[%emt 0:01:08]} 69. Qc7 {
[%emt 0:00:35]} Kg6 {[%emt 0:00:00]} 70. Qc2+ {[%emt 0:01:16]} Qf5 {[%emt 0:00:
44]} 71. Qc6+ {[%emt 0:00:21]} Be6 {[%emt 0:00:25]} 72. Qe8+ {[%emt 0:00:05]}
Qf7 {[%emt 0:00:24]} 73. Qc6 {[%emt 0:00:24]} Qf4+ {[%emt 0:00:58]} 74. Kg2 {
[%emt 0:00:04]} Qd2+ {[%emt 0:00:00]} 75. Kg3 {[%emt 0:00:18]} Qd3+ {[%emt 0:
00:22]} 76. Kf2 {[%emt 0:00:19]} Qd4+ {[%emt 0:00:35]} 77. Ke1 {[%emt 0:01:21]}
Kf5 {[%emt 0:00:36]} 78. Qf3+ {[%emt 0:01:30]} Qf4 {[%emt 0:00:15]} 79. Qh3+ {
[%emt 0:00:35]} g4 {[%emt 0:00:00]} 80. Qh7+ {[%emt 0:00:51]} Ke5 {[%emt 0:01:
49]} 81. Qc7+ {[%emt 0:00:17] [#]} Ke4 $1 {[%emt 0:00:29]} 82. Qc2+ {[%emt 0:
01:44]} Ke5 $2 {[%emt 0:00:29]} (82... Kd4 83. Qb2+ Ke4 84. Qb1+ Ke5 85. Qb8+
Kf5 86. Qf8+ Ke4 87. Qa8+ Bd5 88. Qa4+ Ke5 89. Qe8+ Be6 90. Qb8+ Kf5 91. Qf8+
Ke4 92. Qa8+ Bd5 93. Qe8+ Qe5 94. Qa4+ Kf3+ 95. Kd2 Qf4+ 96. Qxf4+ Kxf4 97. Ke2
g3 98. Kd3 g2 99. Kd4 Be4 100. Kc4 g1=Q 101. Kb4 Qd4+ 102. Kb5 Bf3 103. Ka5
Qc5+ 104. Ka6 Qb4 105. Ka7 Qb7#) 83. Qc7+ $11 {[%emt 0:02:14]} Ke4 {[%emt 0:00:
27]} 84. Qc2+ {[%emt 0:00:21]} Kd5 {[%emt 0:00:39]} 85. Qb3+ {[%emt 0:00:14]}
Qc4 {[%emt 0:00:48]} 86. Qb7+ {[%emt 0:00:13]} Kd6 {[%emt 0:01:37]} 87. Qb8+ {
[%emt 0:00:32]} Ke7 {[%emt 0:00:00]} 88. Qe5 {[%emt 0:00:16]} Kd7 {[%emt 0:02:
02]} 89. Qg7+ {[%emt 0:00:23]} Bf7 {[%emt 0:00:09]} 90. Kf2 {[%emt 0:00:26]}
Qf4+ {[%emt 0:00:34]} 91. Kg1 {[%emt 0:02:49]} g3 {[%emt 0:00:12]} 92. Kg2 {
[%emt 0:01:25]} Qf2+ {[%emt 0:00:00]} 93. Kh3 {[%emt 0:00:11]} Qf1+ $2 {
[%emt 0:00:58]} (93... Qh2+ {mates} 94. Kg4 Ke6 95. Qd4 Bh5+ 96. Kg5 Be2 97.
Qe3+ Kd5 98. Qd2+ Ke4 99. Qb4+ Kf3 100. Qe7 Kf2 101. Qa7+ Kf1 102. Qa1+ Kg2
103. Qa8+ Kg1 104. Qa7+ Qf2 105. Qa1+ Kh2 106. Qe5 Qf3 107. Kg6 Bd3+ 108. Kg5
Be2 109. Kg6 Qg4+ 110. Kf6 Qh4+ 111. Ke6 Qh5 112. Qb8 Qg6+ 113. Ke7 Qg7+ 114.
Ke6 {[#]} Qg8+ $3 115. Qxg8 Bc4+ 116. Ke7 Bxg8 117. Kf8 Ba2 118. Ke7 g2 119.
Kd7 g1=Q 120. Kc6 Qd4 121. Kb7 Qd6 122. Kc8 Be6+ 123. Kb7 Bd5+ 124. Ka7 Qc7+
125. Ka6 Bc4#) 94. Kh4 $17 {[%emt 0:00:12]} g2 {[%emt 0:01:14]} 95. Qxg2 {
[%emt 0:00:08]} Qf6+ {[%emt 0:00:00]} 96. Qg5 {[%emt 0:00:30]} Qh8+ {[%emt 0:
00:11]} 97. Kg3 {[%emt 0:00:11]} Be6 {[%emt 0:00:07]} (97... Qc3+ $17 98. Kf2
Qb2+ 99. Ke1 Qb1+ 100. Kf2 Qc2+ 101. Kf3 Qc3+ 102. Qe3 Bd5+ 103. Ke2 Bc4+ 104.
Kf3 Qf6+ 105. Ke4 Qg6+ 106. Kf4 Qh6+ 107. Kf3 Qf8+ 108. Kg3 Qg7+ 109. Kf4 Qh6+
110. Kf3 Qh3+ 111. Kf2 Qh4+ 112. Kf3 Qf6+ 113. Qf4 Qc3+ 114. Kf2 Qc2+ 115. Kg3
Qd3+ 116. Kf2 Qe2+ 117. Kg3 Qe1+ 118. Kg4 Be6+ 119. Kg5 Qc3) 98. Qb5+ $11 {
[%emt 0:00:22]} Ke7 {[%emt 0:00:39] Weighted Error Value: White=0.87/Black=0.33
} 1/2-1/2